Cogmind - Beta 14 @@@ ROGUE MODE // 2024.08.09 @ 18:31:19 Player: APerTAS Result: Destroyed by YI-UF0 with YI-UF0's Doublenader Performance ------------- Evolutions (0) 0 Regions Visited (4) 800 Robots Destroyed (13) 65 Value Destroyed (160) 160 Prototype IDs (0) 0 Alien Tech Used (0) 0 Bonus (0) 0 TOTAL SCORE: 1025 Bonus ------- None Cogmind --------- Core Integrity 0/250 Matter 248/300 Energy 97/100 System Corruption 0% Temperature Cool (0) Movement Core (50) Location -9/Mines Parts ------- > --- POWER (1) -------- (None) > --- PROPULSION (2) --- (None) > --- UTILITY (2) ------ (None) > --- WEAPON (2) ------- Makeshift Axe > --- INVENTORY (5) ---- Ion Engine Micro Nuclear Core Light Treads Light Treads Light Assault Rifle Peak State ------------ > --- POWER ------------ Ion Engine > --- PROPULSION ------- Light Treads Light Treads > --- UTILITY ---------- Medium Storage Unit Targeting Computer > --- WEAPON ----------- Gauss Rifle Makeshift Axe > --- INVENTORY -------- Ion Engine Micro Nuclear Core Light Treads Light Treads Aluminum Leg High-capacity Matter Pod Hacking Suite Light Assault Rifle Light Assault Rifle Rocket Launcher [Rating: 14] Favorites ----------- Power Ion Engine Engine Ion Engine Propulsion Light Treads Treads Light Treads Utility Targeting Computer Storage Medium Storage Unit Processor Targeting Computer Weapon Light Assault Rifle Energy Gun Medium Laser Ballistic Gun Light Assault Rifle Launcher Rocket Launcher Slashing Weapon Makeshift Axe Build | -11 -10 -10 -10 -9 ------- Run | Yrd Mat Min Exi Min Slots Evolved . | . . . . . Power . | . . . . . Propulsion . | . . . . . Utility . | . . . . . Weapon . | . . . . . Parts Attached 19 | 6 2 3 5 3 Power 1 | 1 . . . . Engine 1 | 1 . . . . Core . | . . . . . Reactor . | . . . . . Propulsion 3 | 2 . . 1 . Treads 3 | 2 . . 1 . Leg . | . . . . . Wheel . | . . . . . Hover . | . . . . . Flight . | . . . . . Utility 3 | 1 1 1 . . Device . | . . . . . Storage 2 | 1 . 1 . . Processor 1 | . 1 . . . Hackware . | . . . . . Protection . | . . . . . Artifact . | . . . . . Weapon 12 | 2 1 2 4 3 Energy Gun 2 | 2 . . . . Energy Cannon . | . . . . . Ballistic Gun 6 | . 1 2 2 1 Ballistic Cannon . | . . . . . Launcher 2 | . . . 1 1 Special Weapon . | . . . . . Impact Weapon . | . . . . . Slashing Weapon 2 | . . . 1 1 Piercing Weapon . | . . . . . Special Melee Weapon . | . . . . . Unidentified Prototypes . | . . . . . Parts Lost 4 | . . . . 4 Power . | . . . . . Propulsion 1 | . . . . 1 Utility 1 | . . . . 1 Weapon 2 | . . . . 2 Highest Loss Streak 4 | . . . . 4 To Critical Strikes . | . . . . . Average Slot Usage (%) 97 | . 89 100 100 98 Engine 13 | . 14 14 14 13 Treads 27 | . 28 28 28 27 Storage 13 | . 14 14 14 13 Processor 11 | . 3 14 14 13 Energy Gun 6 | . 25 8 . . Ballistic Gun 13 | . 2 19 16 13 Slashing Weapon 7 | . . . 10 14 Peak Build Rating 14 | 6 8 8 14 12 Average Rating 9 | 4 6 7 10 10 On Entrance 6 | . 6 8 8 11 Naked Turns . | . . . . . Heaviest Build 22 | 14 14 17 22 19 Greatest Support 40 | 40 40 40 40 40 Greatest Overweight (x) . | . . . . . Average Overweight (x) . | . . . . . Largest Inventory Capacity 10 | 8 8 10 10 10 Average Capacity 9 | 6 8 8 10 9 Most Carried 10 | 4 8 9 10 10 Average Carried 8 | 2 6 8 9 9 Final Capacity 10 | 8 8 10 10 5 Final Carried 10 | 4 8 8 10 5 Class Distribution -------------------- 100% | Mutant Dominant Class ---------------- Mutant | -10/Materials Mutant | -10/Mines Mutant | -10/Exiles Mutant | -9/Mines Resources | -11 -10 -10 -10 -9 ----------- Run | Yrd Mat Min Exi Min Matter Collected 560 | 231 99 54 176 . Remotely . | . . . . . Salvage Created 665 | . 132 82 451 . Parts 46 | . 18 14 14 . Haulers Intercepted . | . . . . . Recyclers Shooed . | . . . . . Parts Field Recycled . | . . . . . Retrieved Matter . | . . . . . Parts Self-Destructed . | . . . . . Prevented . | . . . . . Kills | -11 -10 -10 -10 -9 ------- Run | Yrd Mat Min Exi Min Combat Hostiles Destroyed 12 | . 7 5 . . Guns 12 | . 7 5 . . Classes Destroyed 3 | . 3 . . . Operator 1 | . 1 . . . Swarmer 11 | . 6 5 . . Grunt 1 | . 1 . . . Best Kill Streak 4 | . 3 4 . . Combat Bots Only 4 | . 3 4 . . Max Kills in Single Turn 1 | . 1 1 . . Gunslinging . | . . . . . Exploded . | . . . . . Melee . | . . . . . Uniques/NPCs Destroyed . | . . . . . Combat | -11 -10 -10 -10 -9 -------- Run | Yrd Mat Min Exi Min Hostile Shots Fired 62 | . 39 13 . 10 Missed 18 | . 8 7 . 3 Damage Taken 935 | . 284 47 . 604 Core 251 | . 44 19 . 188 Absorbed by Shields . | . . . . . Core Remaining (%) 100 | 100 . . . . Volleys Fired 89 | . 21 9 55 4 Largest 2 | . 2 2 2 1 Hottest 100 | . 100 70 40 33 Shots Fired 140 | . 42 18 76 4 Gun 132 | . 42 18 71 1 Cannon . | . . . . . Launcher 8 | . . . 5 3 Special . | . . . . . Kinetic 86 | . 4 10 71 1 Thermal 46 | . 38 8 . . Explosive 8 | . . . 5 3 Electromagnetic . | . . . . . Robot Hit Streak 16 | . 6 2 16 2 Robot Miss Streak 6 | . 6 4 2 1 Penetration Max . | . . . . . Secondary Targets 1 | . 1 . . . Max Gunslinging Chain 1 | . 1 . . . Shots Hit Robots 89 | . 19 5 63 2 Core Hits 40 | . 10 5 24 1 Critical Kills . | . . . . . Critical Parts Destroyed . | . . . . . Critical Strikes . | . . . . . Melee Attacks 42 | . . . 42 . Impact . | . . . . . Slashing 42 | . . . 42 . Piercing . | . . . . . Sneak Attacks . | . . . . . Combat Hostiles . | . . . . . Follow-up Attacks . | . . . . . Damage Inflicted 1219 | . 223 60 918 18 Guns 716 | . 223 60 433 . Cannons . | . . . . . Explosions 18 | . . . . 18 Melee 485 | . . . 485 . Ramming . | . . . . . Kinetic 468 | . 25 10 433 . Thermal 248 | . 198 50 . . Explosive 18 | . . . . 18 Electromagnetic . | . . . . . Impact . | . . . . . Slashing 485 | . . . 485 . Piercing . | . . . . . Highest Corruption . | . . . . . Average Corruption . | . . . . . Corruption Purged . | . . . . . Corruption Blocked . | . . . . . Overload Shots . | . . . . . Overflow Damage 31 | . . . 31 . Projectiles . | . . . . . Explosions . | . . . . . Melee 31 | . . . 31 . Knockbacks . | . . . . . Impact . | . . . . . Kinetic . | . . . . . Secondary . | . . . . . Self-Inflicted Damage . | . . . . . Shots . | . . . . . Rammed . | . . . . . Targets Rammed . | . . . . . Kicked . | . . . . . Crushed . | . . . . . Highest Temperature 255 | . 255 62 . . Average Temperature 90 | . 107 31 . . Received Heat Transfer 36 | . 36 . . . Siege Activations . | . . . . . Robots Corrupted . | . . . . . Combat Hostiles . | . . . . . Parts Fried . | . . . . . Impact Corruptions . | . . . . . Robots Melted . | . . . . . Combat Hostiles . | . . . . . Parts Melted 1 | . 1 . . . Heat Transferred 740 | . 592 148 . . Parts Sabotaged . | . . . . . Parts Stolen . | . . . . . Parts Stripped . | . . . . . Power Chain Reactions . | . . . . . Alert | -11 -10 -10 -10 -9 ------- Run | Yrd Mat Min Exi Min Peak Influence 153 | . 116 153 . . Initial 43 | . . 43 . . Average 46 | . 70 98 . . Maximum Alert Level . | . . . . . Low Security (%) 100 | 100 100 100 . 100 Level 1 . | . . . . . Level 2 . | . . . . . Level 3 . | . . . . . Level 4 . | . . . . . Level 5 . | . . . . . High Security . | . . . . . Max Security . | . . . . . Squads Dispatched 1 | . 1 . . . Investigation . | . . . . . Extermination . | . . . . . Reinforcement 1 | . 1 . . . Assault . | . . . . . Garrison . | . . . . . Intercept . | . . . . . Searches Triggered . | . . . . . Construction Impeded . | . . . . . Haulers Reinforced . | . . . . . Active Scanning Responses . | . . . . . Cargo Convoy Interrupts . | . . . . . Stealth | -11 -10 -10 -10 -9 --------- Run | Yrd Mat Min Exi Min Distress Signals . | . . . . . Communications Jammed . | . . . . . Distress Signals . | . . . . . Times Spotted 15 | . 9 5 . 1 Peak Tracking Total 3 | . 3 3 . 1 Tactical Retreats 1 | . 1 . . . Traps | -11 -10 -10 -10 -9 ------- Run | Yrd Mat Min Exi Min Traps Triggered 1 | . 1 . . . Indirectly . | . . . . . Trap Hack Attempts . | . . . . . Triggered . | . . . . . Disarmed . | . . . . . Reprogrammed . | . . . . . Reused . | . . . . . Traps Extracted . | . . . . . Installed . | . . . . . Triggered . | . . . . . Machines | -11 -10 -10 -10 -9 ---------- Run | Yrd Mat Min Exi Min Machines Disabled 1 | . . . 1 . Max in Single Turn 1 | . . . 1 . Machines Repaired . | . . . . . Machines Dismantled . | . . . . . Machines Sabotaged . | . . . . . Overloaded Fab Kills . | . . . . . Hacking | -11 -10 -10 -10 -9 --------- Run | Yrd Mat Min Exi Min Machines Accessed 13 | . 9 . 4 . Terminals 6 | . 6 . . . Fabricators . | . . . . . Repair Stations 1 | . 1 . . . Recycling Units 2 | . 2 . . . Scanalyzers . | . . . . . Garrison Access . | . . . . . Total Hacks 78 | . 29 . 49 . Successful 69 | . 20 . 49 . Failed 9 | . 9 . . . Catastrophic 2 | . 2 . . . Database Lockouts . | . . . . . Manual 15 | . 15 . . . Terminals 16 | . 16 . . . Fabricators . | . . . . . Repair Stations 2 | . 2 . . . Recycling Units 11 | . 11 . . . Scanalyzers . | . . . . . Garrison Access . | . . . . . Terminal Hacks 55 | . 6 . 49 . Record 49 | . . . 49 . Locate Traps 1 | . 1 . . . Maintenance Status 1 | . 1 . . . Hauler Manifests 1 | . 1 . . . Zone Layout 3 | . 3 . . . Fabricator Hacks . | . . . . . Repair Station Hacks . | . . . . . Recycling Unit Hacks 3 | . 3 . . . Report Inventory 2 | . 2 . . . Retrieve Components 1 | . 1 . . . Scanalyzer . | . . . . . Garrison Access Hacks . | . . . . . Unauthorized Hacks 11 | . 11 . . . Terminals 7 | . 7 . . . Track 2 | . 2 . . . Botnet 4 | . 4 . . . Disrupt 1 | . 1 . . . Fabricators . | . . . . . Repair Stations . | . . . . . Recycling Units 4 | . 4 . . . Monitor 1 | . 1 . . . Reject 2 | . 2 . . . Recyclers 1 | . 1 . . . Scanalyzers . | . . . . . Garrison Access . | . . . . . Data Cores Recovered . | . . . . . Used . | . . . . . Hacking Detections 8 | . 8 . . . Full Trace Events . | . . . . . Feedback Events . | . . . . . Feedback Blocked . | . . . . . Robot Schematics Acquired . | . . . . . Robots Built . | . . . . . Authchips . | . . . . . Time . | . . . . . Total Robot Build Rating . | . . . . . Part Schematics Acquired . | . . . . . Parts Built . | . . . . . Authchips . | . . . . . Time . | . . . . . Total Part Build Rating . | . . . . . Parts Repaired . | . . . . . Time . | . . . . . Parts Recycled . | . . . . . Recycled Matter . | . . . . . Retrieved Matter . | . . . . . Retrieved Components 3 | . 3 . . . Parts Scanalyzed . | . . . . . Part Schematics Acquired . | . . . . . Parts Damaged . | . . . . . Bothacking | -11 -10 -10 -10 -9 ------------ Run | Yrd Mat Min Exi Min Used RIF Installer . | . . . . . Robots Hacked . | . . . . . Non-combat . | . . . . . Combat . | . . . . . Robot Hacks Applied . | . . . . . Relay Couplers Released . | . . . . . Fabnet Peak Effective % . | . . . . . Robots Rewired 1 | . . . 1 . Allies Hacked . | . . . . . Hacks Repelled . | . . . . . Allies | -11 -10 -10 -10 -9 -------- Run | Yrd Mat Min Exi Min Total Allies 2 | . . . 1 1 Largest Group 2 | . . . 1 2 Highest-Rated Group 39 | . . . 8 39 Highest-Rated Ally 31 | . . . 8 31 Total Orders . | . . . . . Ally Attacks 4 | . . . . 4 Total Damage 82 | . . . . 82 Kills . | . . . . . Allies Corrupted . | . . . . . Allies Melted . | . . . . . Intel | -11 -10 -10 -10 -9 ------- Run | Yrd Mat Min Exi Min Robot Analysis Total . | . . . . . Derelict Logs Recovered 1 | . . 1 . . Drone Launches . | . . . . . Drone Recoveries . | . . . . . Exploration | -11 -10 -10 -10 -9 ------------- Run | Yrd Mat Min Exi Min Turns Passed 3013 | 80 614 274 1483 562 Spaces Moved 1659 | 44 327 149 790 349 Core 10 | 2 . . . 8 Treads 1649 | 42 327 149 790 341 Legs . | . . . . . Wheels . | . . . . . Hover . | . . . . . Flight . | . . . . . Fastest Speed 50 | 50 160 160 160 50 Average Speed 159 | 155 160 160 160 157 Slowest Speed 160 | 160 160 160 160 160 Overloaded Moves . | . . . . . Propulsion Burnouts . | . . . . . Robots Hopped . | . . . . . Cave-ins Triggered . | . . . . . Exploration Rate (%) 52 | 5 52 36 97 70 Regions Visited 4 Branch Regions 3 Pre-discovered Areas 1 | . . . 1 . Known Exits Taken . | . . . . . Unknown Exits Taken 4 | 1 1 1 1 . Scrap Searched 1 | . . . . 1 Spaces Dug 14 | . . . 14 . Terrain Destroyed 62 | . . . 53 9 Melee 2 | . . . 2 . Projectile . | . . . . . AOE 60 | . . . 51 9 Terrain Rammed . | . . . . . Walls Destroyed . | . . . . . Machines Disabled . | . . . . . Actions | -11 -10 -10 -10 -9 --------- Run | Yrd Mat Min Exi Min Total 1862 | 53 377 172 904 356 Wait 24 | . 19 5 . . Move 1655 | 43 326 148 789 349 Hop . | . . . . . Pick Up 16 | 4 6 2 4 . Fast Attach 10 | 6 2 1 . 1 Attach 1 | . . . . 1 Detach . | . . . . . Swap 8 | . . 2 5 1 Drop 11 | . 3 5 3 . Fire 89 | . 21 9 55 4 Melee 42 | . . . 42 . Ram . | . . . . . Kick . | . . . . . Crush . | . . . . . Escape Stasis . | . . . . . Rewire 6 | . . . 6 . Trap . | . . . . . Miscellaneous . | . . . . . Route ------- -11/Scrapyard -10/Materials (discovered 3 exits: [*Mat x2] / [*Min]) -10/Mines (discovered 3 exits: [*Mat x2] / *Exi) -10/Exiles (discovered 2 exits: [*Min x2]) -9/Mines (discovered 2 exits: [*Mat x2]) History --------- Turn | Location | Event 12 | -11/Scrapyard | Discovered new exit (range 14) 81 | -11/Scrapyard | Entered Materials 310 | -10/Materials | Build established: Mutant 477 | -10/Materials | Discovered new exit (range 5) 607 | -10/Materials | Discovered new exit (range 13) 607 | -10/Materials | Discovered new exit (range 19) 695 | -10/Materials | Entered Mines 748 | -10/Mines | Discovered new exit (range 9) 869 | -10/Mines | Learned Materials stockpile data 895 | -10/Mines | Discovered new exit (range 2) 899 | -10/Mines | Received a Rocket Launcher from a helpful Derelict 962 | -10/Mines | Deemed a non-threat by the Exiles lab entrance 962 | -10/Mines | Discovered new exit (range 5) 969 | -10/Mines | Entered Exiles 969 | -10/Exiles | Found Exiles lab destroyed 1647 | -10/Exiles | Learned location of Zion (-7) 2210 | -10/Exiles | Discovered new exit (range 14) 2429 | -10/Exiles | Discovered new exit (range 12) 2452 | -10/Exiles | Entered Mines 2452 | -9/Mines | Accompanied by 1 ally 2801 | -9/Mines | Discovered new exit (range 8) 2815 | -9/Mines | Received a Mining Laser from a helpful Derelict 2918 | -9/Mines | Discovered new exit (range 7) 3009 | -9/Mines | Core integrity fell below 50% 3009 | -9/Mines | Released all parts (4) 3011 | -9/Mines | Core integrity fell below 20% 3014 | -9/Mines | Destroyed by YI-UF0 with YI-UF0's Doublenader Last Messages --------------- 02990_ K-01 Serf collects debris. 02995_ The unstable cave ceiling collapses. 02998_ Targeting Computer destroyed. 03000_ YI-UF0: "WHOMP!" 03000_ Mercenary 1a destroyed. 03002_ Lgt. Treads destroyed. 03002_ U-05 Engineer lays Concrete. 03003_ U-05 Engineer builds a Wall. 03003_ YI-UF0 suffers critical hit (Burn). 03004_ KP-P9G(g) destroyed. 03004_ Rocket Launcher destroyed. 03005_ The unstable cave ceiling collapses. 03008_ Gauss Rifle destroyed. 03009_ Released Mak. Axe. 03009_ Released Med. Storage Unit. 03009_ Released Lgt. Treads. 03009_ Released Ion Engine. 03009_ Acquired Mak. Axe. 03013_ YI-UF0 mumbles something. 03013_ The unstable cave ceiling collapses. Map ----- +----------------------------------------------------+ | ?????????????????????????????????????????????????? | | ?????????????????????????????????????????????????? | | ?????????????????????????????????????????????????? | | ?????????????????????????????????????????????????? | | ?????????????????????????????????????????????????? | | ?????????????????????????????????????????????????? | | ?????????????????????????????????????????????????? | | ?????????????????????????????????????????????????? | | ?????????????????????????????????????????????????? | | ????????? ???????????????????????????????????????? | | ????????? ????????????? ###??????????????????????? | | ????????? ??????????? ##????????????????????? | | ????????? ##??????? #????????????????????? | | ???????? #?????=% ##???????????????????? | | ????????# #???? # ##??????????????????? | | ????????# #????? ###????????????????? | | ???????## #?????# g ######???????#???? | | ??????## ##????? ## ##?????# ???? | | ??????# #??????# #?##?# ? #?? | | ??????# #??????# ?? ## ? #?? | | ??????? ##??????? #### ? ##? | | ???????# ##???????# $ ? #? | | ??###### #????????# # # ## | | ??# #???????## # | | #?# < #??????## # = ?? | | ### ##### #??????# @ = ! #??? ##?? | | #???# #??????# ![ # ##? ### | | ####???# ####???# # # # # | | ##??????## # #?? ?## # ## # | | #????????## ######### # # | | ??????????## % % ##% "## * | | ??###??????# % ##### ## # # ##% #?? #% | | ?# ##?????# ##? # ###%## ## #### | | # #?????## ###? # # # #### ## | | #??????### ???# # # # #### | | ##?????????##??# # # # ####%[ # # | | ##?????####?????? #%## #### ##??# ### ## | | ##?????## ##??###### ## # # ### #??# #?# ## | | ###??????# ##?# # # ###??##??# #?# ## | | #????????# ### # # ##?????##### #?# | | ??####???# # %## #??????## ####### | | ### ##??## ## # ##???#### ##???## | | ## #??## # ## #??## ##???? | | #?## ## ## #?## ##??? | | #?# ## #### ### #### | | ##?# ##### # | | #### # ## """ | | ## ## # ## """ | | % % # #### """ | | ## ####??# | +----------------------------------------------------+ Best States ------------- Heat Dissipation 25 Energy Generation 10 Energy Capacity 250 Matter Stores 300 Matter Capacity 300 Sight Range 16 Terrain Scan Density 10 Evasion (%) 40 Targeting Accuracy 5 Recoil Reduction 2 Item Schematics ----------------- None Robot Schematics ------------------ None Fabricated ------------ Nothing Alien Tech Used ----------------- None Achievements -------------- None Challenges ------------ None Game ------ Seed PoweredRagnarokHammer Manual? 0 Play Time 00:23:16 Cumulative 18.9 hours Start 2024.08.09 @ 18:11:11 End 2024.08.09 @ 18:31:19 Sessions 1 Manual Loads 0 Difficulty Rogue Special Mode None Game No. 92 Rogue 92 Adventurer 0 Explorer 0 Win Type - Total 0 Types 0/0/0/0/0/0/0/0/0 Lore% 27 Gallery% 23 Achievement% 32 Wizard Run 0 Options --------- Layout 0 ASCII 0 Keyboard 0 Movement Arrows Keybinds 0 Fullscreen 2 Font 18/Terminus Map View 76x50 Zoom Use 0% Tactical HUD 1 Map Filters NONE Filters NONE Steam 1 RUN: 68bab6fe-219a-4a81-8468-2c2bc9d14556